bitfinex-derivatives/quotes_SOLF0:USTF0_20250716
["timestamp","ask_amount","ask_price","bid_price","bid_amount"]
[1752704848574,3.2,175.41,175.38,3.21261134]
[1752704849578,3.2,175.39,175.37,6.0888]
[1752704849778,3.2,175.39,175.38,3.21261134]
[1752704850976,3.2,175.39,175.36,3.21261134]
[1752704851274,3.21261134,175.44,175.36,3.21261134]
[1752704851275,3.2,175.37,175.36,3.21261134]
[1752704851675,3.2,175.37,175.36,3.60261134]
[1752704851876,3.2,175.39,175.38,6.0886]
[1752704852072,3.2,175.41,175.38,9.30121134]
[1752704852272,3.2,175.4,175.38,9.30121134]
[1752704852477,5.6982,175.4,175.34,168.5]
[1752704852779,5.6982,175.4,175.37,3.21261134]
[1752704852780,3.2,175.38,175.37,3.21261134]
[1752704853679,3.23,175.37,175.36,5.6992]
[1752704853878,3.23,175.37,175.34,168.5]
[1752704854076,12.74226025,175.46,175.29,729.22]
[1752704854077,5.6995,175.36,175.29,729.22]
[1752704854280,3.23,175.35,175.3,0.39]
[1752704854475,3.23,175.4,175.34,3.21261134]
[1752704854675,3.23,175.37,175.35,3.21261134]
[1752704854980,3.23,175.36,175.35,3.21261134]
[1752704855980,3.23,175.35,175.33,3.21261134]
[1752704856581,8.9297,175.35,175.33,3.21261134]
[1752704856875,3.23,175.33,175.29,492.22]
[1752704857182,15.95487159,175.41,175.31,3.21261134]
[1752704857183,3.23,175.35,175.31,3.21261134]
[1752704857380,3.23,175.34,175.31,3.21261134]
[1752704858078,9.54602172,175.36,175.33,3.21261134]
[1752704858380,3.23,175.35,175.33,3.21261134]
[1752704858980,3.23,175.34,175.33,3.21261134]
[1752704860981,3.23,175.36,175.34,0.39]
[1752704861182,3.23,175.36,175.35,3.21261134]
[1752704861575,9.54602172,175.37,175.35,3.60261134]
[1752704861782,3.23,175.37,175.36,0.39]
[1752704861980,3.23,175.37,175.35,3.60261134]
[1752704862178,3.23,175.37,175.36,5.6994]
[1752704862377,3.23,175.39,175.37,0.39]
[1752704862690,3.23,175.41,175.39,0.39]
[1752704862884,9.54602172,175.44,175.4,3.21261134]
[1752704863084,3.23,175.43,175.42,3.21261134]
[1752704864178,9.54602172,175.43,175.4,3.21261134]
[1752704864390,3.23,175.42,175.4,3.21261134]
[1752704865387,3.23,175.41,175.4,3.21261134]
[1752704866088,3.23,175.41,175.4,8.91071134]
[1752704866285,12.77602172,175.43,175.4,3.60261134]
[1752704866491,3.23,175.43,175.42,3.21261134]
[1752704866683,3.23,175.43,175.42,8.91001134]
[1752704866986,12.77602172,175.45,175.42,3.60261134]
[1752704867184,12.77602172,175.45,175.44,3.21261134]
[1752704870088,18.47252172,175.45,175.44,3.21261134]
[1752704870695,8.9265,175.45,175.44,3.21261134]
[1752704870896,12.77205499,175.45,175.44,3.21261134]
[1752704871093,12.77187149,175.45,175.44,3.21261134]
[1752704871791,18.46837149,175.45,175.44,3.21261134]
[1752704871993,8.9265,175.45,175.44,3.21261134]
[1752704872697,3.23,175.43,175.4,8.91061134]
[1752704872993,3.23,175.41,175.4,8.91061134]
[1752704873185,3.23,175.41,175.4,3.21261134]
[1752704873594,12.7776205,175.41,175.4,3.21261134]
[1752704874195,9.5476205,175.41,175.39,3.21261134]
[1752704874398,3.23,175.4,175.39,3.21261134]
[1752704874694,12.78316193,175.42,175.4,0.39]
[1752704874998,12.78316193,175.41,175.39,0.39]
[1752704875185,12.74226025,175.46,175.4,3.21261134]
[1752704875186,9.55316193,175.42,175.4,3.21261134]
[1752704875390,9.55316193,175.41,175.4,8.91061134]
[1752704875901,12.78316193,175.41,175.4,8.91061134]
[1752704876488,9.55316193,175.41,175.38,3.21261134]
[1752704876795,3.23,175.38,175.35,3.21261134]
[1752704877499,3.23,175.38,175.34,92.01450205]
[1752704877703,12.79071791,175.35,175.34,92.01450205]
[1752704877897,9.56071791,175.35,175.34,92.40450205]
[1752704878199,9.56071791,175.36,175.35,6.0897]
[1752704878499,12.79071791,175.36,175.35,9.30231134]
[1752704879594,12.79071791,175.36,175.35,6.0897]
[1752704879795,12.79071791,175.36,175.35,8.91231134]
[1752704883095,3.23,175.36,175.35,3.21261134]
[1752704883598,3.23,175.36,175.35,8.91231134]
[1752704883794,3.23,175.36,175.35,3.21261134]
[1752704884194,3.23,175.36,175.35,8.91231134]
[1752704885910,3.23,175.36,175.35,3.21261134]
[1752704887604,3.23,175.36,175.35,8.91231134]
[1752704888505,3.23,175.36,175.35,3.21261134]
[1752704890209,3.23,175.36,175.34,86.31460205]
[1752704891911,5.6997,175.35,175.34,86.31460205]
[1752704892117,8.9997,175.35,175.34,86.31460205]
[1752704893916,3.3,175.35,175.34,86.31460205]
[1752704894907,5.6998,175.35,175.32,174.1105]
[1752704895112,3.3,175.33,175.32,177.32311134]
[1752704895915,12.85907705,175.34,175.33,6.0904]
[1752704896106,12.85907705,175.34,175.32,171.23261134]
[1752704896410,12.85907705,175.34,175.32,177.32301134]
[1752704896714,12.85907705,175.34,175.32,174.1104]
[1752704896905,12.85907705,175.34,175.33,3.21261134]
[1752704897107,12.85907705,175.34,175.33,8.91301134]
[1752704897310,12.85907705,175.34,175.33,9.30301134]
[1752704897708,12.85907705,175.34,175.33,3.21261134]
[1752704900105,12.85907705,175.34,175.33,8.91301134]
[1752704900708,12.85907705,175.34,175.33,3.21261134]
[1752704901107,3.3,175.34,175.33,3.21261134]
[1752704902214,12.85907705,175.34,175.33,3.21261134]
[1752704903314,3.3,175.34,175.33,8.91301134]
[1752704903614,12.85907705,175.34,175.33,8.91301134]
[1752704903808,3.3,175.34,175.33,8.91301134]
[1752704904310,12.85907705,175.34,175.33,8.91301134]
[1752704904509,12.85907705,175.34,175.33,3.21261134]
[1752704904917,18.55907705,175.34,175.33,3.21261134]
[1752704905413,9.0,175.34,175.33,3.21261134]
[1752704906016,3.3,175.34,175.33,3.21261134]
[1752704906219,3.3,175.34,175.33,3.60261134]
[1752704906510,3.3,175.41,175.33,3.60261134]
[1752704906712,5.6992,175.37,175.34,5.7]
[1752704906912,3.3,175.35,175.33,3.60261134]
[1752704907313,9.55577232,175.34,175.33,3.60261134]
[1752704907511,12.85577232,175.35,175.33,3.60261134]
[1752704908120,12.85577232,175.35,175.33,9.30291134]
[1752704908416,9.55577232,175.34,175.33,9.30291134]
[1752704908817,12.85577232,175.34,175.33,9.30291134]
[1752704909013,9.55653401,175.36,175.34,0.39]
[1752704909215,12.74102976,175.42,175.36,0.39]
[1752704909417,12.74102976,175.44,175.4,3.21261134]
[1752704909712,5.6972,175.43,175.4,3.21261134]
[1752704909917,12.74102976,175.46,175.37,171.27]
[1752704910118,12.74102976,175.45,175.39,3.21261134]
[1752704910518,12.74102976,175.44,175.39,3.21261134]
[1752704911221,3.3,175.43,175.39,3.21261134]
[1752704911523,3.3,175.4,175.39,12.22101134]
[1752704912119,3.3,175.4,175.39,8.91101134]
[1752704913125,3.3,175.4,175.39,12.17101134]
[1752704914519,3.3,175.4,175.39,8.91101134]
[1752704914917,3.3,175.4,175.39,12.17101134]
[1752704915119,3.3,175.4,175.39,8.9584]
[1752704915318,3.3,175.4,175.39,6.47261134]
[1752704915521,3.3,175.4,175.39,3.21261134]
[1752704916222,3.3,175.4,175.37,171.22]
[1752704916422,12.74102976,175.43,175.36,3.21261134]
[1752704916618,12.74102976,175.4,175.32,3.21261134]
[1752704916826,27.3193872,175.45,175.32,3.21261134]
[1752704916827,3.07,175.38,175.32,3.21261134]
[1752704917024,12.74102976,175.37,175.32,3.21261134]
[1752704917221,3.07,175.36,175.31,167.92]
[1752704917725,3.07,175.32,175.31,167.92]
[1752704918621,3.07,175.32,175.3,5.7011]
[1752704918622,3.07,175.32,175.29,94.42297856]
[1752704918818,3.07,175.32,175.29,88.72147856]
[1752704919019,3.07,175.32,175.3,5.7013]
[1752704919421,3.07,175.31,175.3,5.7013]
[1752704919627,3.07,175.31,175.3,8.9613]
[1752704922630,3.07,175.31,175.3,12.17391134]
[1752704924222,5.7003,175.34,175.31,5.7008]
[1752704924422,3.07,175.32,175.31,8.9608]
[1752704926231,3.07,175.34,175.33,5.7003]
[1752704926430,3.07,175.34,175.33,8.9603]
[1752704927234,3.07,175.34,175.33,5.7003]
[1752704928632,3.07,175.34,175.32,8.91321134]
[1752704929042,3.07,175.34,175.31,167.92]
[1752704930033,3.07,175.33,175.31,173.6208]
[1752704930335,3.07,175.33,175.31,176.8808]
[1752704930533,5.6998,175.35,175.32,5.7007]
[1752704930935,3.07,175.34,175.32,5.7007]
[1752704934142,5.6994,175.36,175.33,5.7004]
[1752704934341,3.07,175.35,175.32,3.26]
[1752704935548,8.7699,175.35,175.32,5.7005]
[1752704935738,5.6999,175.35,175.32,5.7005]
[1752704935935,3.07,175.34,175.32,5.7005]
[1752704938041,8.7701,175.34,175.31,173.6209]
[1752704938340,3.07,175.34,175.31,173.6209]
[1752704938939,3.07,175.34,175.32,5.7007]
[1752704941242,3.07,175.34,175.33,5.7004]
[1752704942745,3.07,175.34,175.32,3.26]
[1752704943037,3.07,175.34,175.33,9.0504]
[1752704943239,3.34,175.35,175.34,3.35]
[1752704943641,3.34,175.35,175.34,171.23]
[1752704943843,3.34,175.35,175.34,173.5798]
[1752704944038,3.34,175.35,175.34,176.9298]
[1752704945344,3.34,175.35,175.34,173.5798]
[1752704945836,3.34,175.35,175.34,167.88]
[1752704946040,3.34,175.35,175.31,171.09261134]
[1752704946242,3.34,175.35,175.31,176.79341134]
[1752704946644,5.7001,175.34,175.31,171.09261134]
[1752704946945,3.34,175.33,175.31,167.88]
[1752704947146,3.34,175.31,175.29,253.38886722]
[1752704948749,3.34,175.32,175.3,3.35]
[1752704949443,3.34,175.26,175.24,3.35]
[1752704949645,3.34,175.31,175.25,3.35]
[1752704949849,12.74102976,175.31,175.25,3.35]
[1752704950037,3.34,175.3,175.25,3.35]
[1752704950453,5.7022,175.28,175.25,3.35]
[1752704950652,3.34,175.27,175.26,3.21261134]
[1752704950854,3.34,175.27,175.26,6.56261134]
[1752704951152,3.34,175.27,175.26,3.21261134]
[1752704951953,3.34,175.27,175.26,6.56261134]
[1752704952554,3.34,175.27,175.26,3.21261134]
[1752704953252,3.34,175.27,175.26,6.56261134]
[1752704954650,3.34,175.27,175.26,3.21261134]
[1752704958656,3.34,175.27,175.25,5.7028]
[1752704958956,3.34,175.27,175.26,3.21261134]
[1752704960556,3.34,175.27,175.26,6.56261134]
[1752704960961,3.34,175.27,175.26,3.21261134]
[1752704961458,3.34,175.27,175.26,8.91521134]
[1752704961656,3.34,175.31,175.27,3.35]
[1752704961848,15.9262872,175.4,175.29,3.21261134]
[1752704961849,16.08102976,175.35,175.29,3.21261134]
[1752704962052,3.34,175.32,175.29,3.21261134]
[1752704963153,9.0408,175.32,175.31,3.21261134]
[1752704963460,3.34,175.31,175.28,5.7018]
[1752704963758,3.34,175.31,175.3,3.21261134]
[1752704964257,9.0413,175.31,175.3,3.21261134]
[1752704965257,3.34,175.31,175.3,3.21261134]
[1752704967359,3.34,175.31,175.3,8.91391134]
[1752704967553,3.34,175.31,175.3,12.26391134]
[1752704968462,3.34,175.31,175.3,3.21261134]
[1752704969462,3.34,175.31,175.29,8.91421134]
[1752704970065,3.34,175.31,175.29,12.26421134]
[1752704970864,3.34,175.31,175.29,9.0516]
[1752704971159,3.34,175.31,175.3,8.91391134]
[1752704971359,3.34,175.31,175.3,12.26391134]
[1752704971563,3.34,175.32,175.31,3.35]
[1752704971758,3.34,175.32,175.31,12.26341134]
[1752704973467,3.34,175.32,175.27,171.02]
[1752704973766,3.34,175.32,175.29,3.21261134]
[1752704974267,3.14,175.31,175.29,8.91421134]
[1752704974964,3.14,175.3,175.29,12.13421134]
[1752704978368,3.14,175.32,175.29,3.21261134]
[1752704978668,3.14,175.32,175.3,3.22]
[1752704978868,3.14,175.31,175.3,8.9211]
[1752704979469,3.14,175.31,175.3,5.7011]
[1752704979661,3.14,175.31,175.29,8.91421134]
[1752704980066,3.14,175.31,175.29,3.21261134]
[1752704980268,8.841,175.31,175.29,8.91411134]
[1752704980569,5.701,175.31,175.29,8.9215]
[1752704980868,3.14,175.3,175.29,8.9215]
[1752704981569,3.14,175.29,175.26,3.22]
[1752704981766,3.14,175.29,175.25,167.76]
[1752704981963,3.14,175.29,175.26,3.21261134]
[1752704982469,3.14,175.29,175.25,3.21261134]
[1752704982663,3.14,175.27,175.25,3.21261134]
[1752704982969,3.14,175.26,175.25,6.43261134]
[1752704983570,3.14,175.26,175.25,12.13541134]
[1752704984471,3.14,175.26,175.21,3.21261134]
[1752704984665,15.88102976,175.26,175.21,3.21261134]
[1752704984970,12.74102976,175.26,175.21,3.21261134]
[1752704985274,3.14,175.25,175.21,3.21261134]
[1752704985773,5.7036,175.24,175.21,3.21261134]
[1752704985973,3.14,175.23,175.21,3.21261134]
[1752704986267,5.704,175.22,175.19,3.21261134]
[1752704986467,3.14,175.21,175.15,88.18574223]
[1752704986674,3.14,175.21,175.17,3.21261134]
[1752704987068,5.7044,175.21,175.17,8.91811134]
[1752704987270,3.14,175.2,175.17,8.91811134]
[1752704987568,8.8446,175.2,175.16,5.7058]
[1752704987775,3.14,175.19,175.16,12.13841134]
[1752704988775,3.14,175.18,175.16,6.43261134]
[1752704989179,3.14,175.18,175.16,3.22]
[1752704989480,5.7047,175.2,175.16,8.9258]
[1752704989775,3.14,175.19,175.16,8.9258]
[1752704990180,3.14,175.18,175.16,8.9258]
[1752704990670,3.14,175.17,175.16,8.9258]
[1752704991176,3.14,175.23,175.17,5.7054]
[1752704991478,3.14,175.2,175.17,8.91801134]
[1752704991677,3.14,175.2,175.18,3.22]
[1752704992078,3.14,175.2,175.17,8.91801134]
[1752704992375,5.7046,175.2,175.17,6.43261134]
[1752704992565,3.14,175.18,175.17,6.43261134]
[1752704992772,3.14,175.18,175.14,6.43261134]
[1752704993471,5.706,175.16,175.14,6.43261134]
[1752704993671,3.14,175.15,175.14,6.43261134]
[1752704995674,3.14,175.15,175.14,3.22]
[1752704996272,3.14,175.15,175.13,3.21261134]
[1752704996478,3.14,175.14,175.13,6.43261134]
[1752704996675,8.8465,175.14,175.13,3.21261134]
[1752704996880,8.8465,175.14,175.13,6.43261134]
[1752704997072,3.14,175.14,175.13,6.43261134]
[1752704998677,3.14,175.14,175.11,171.01261134]
[1752704998879,5.7068,175.14,175.11,171.01261134]
[1752704999077,12.74102976,175.23,175.12,3.22]
[1752704999278,3.21261134,175.21,175.12,3.22]
[1752704999477,3.14,175.14,175.13,3.22]
[1752704999870,3.14,175.14,175.13,6.43261134]
[1752705000976,3.14,175.14,175.11,176.72001134]
[1752705001582,3.14,175.14,175.11,179.94001134]
[1752705001782,3.14,175.12,175.11,171.02]
[1752705003196,3.14,175.12,175.11,176.7275]
[1752705005896,8.9767,175.14,175.12,3.28]
[1752705006093,3.27,175.13,175.12,3.28]
[1752705006292,5.7064,175.15,175.12,3.21261134]
[1752705006595,8.9764,175.15,175.14,3.21261134]
[1752705007297,5.7064,175.15,175.14,3.21261134]
[1752705007492,5.7064,175.15,175.13,3.28]
[1752705007687,3.21261134,175.21,175.14,3.21261134]
[1752705007889,3.27,175.22,175.14,6.49261134]
[1752705008291,5.7058,175.17,175.14,12.19901134]
[1752705008484,3.27,175.16,175.15,3.28]
[1752705008690,3.27,175.15,175.14,12.19901134]
[1752705008902,3.27,175.15,175.14,6.49261134]
[1752705009285,3.27,175.15,175.14,3.21261134]
[1752705009696,5.7066,175.14,175.12,3.28]
[1752705009897,3.27,175.13,175.04,492.84]
[1752705010098,3.27,175.13,175.08,3.28]
[1752705010396,3.27,175.13,175.08,3.21261134]
[1752705010588,3.27,175.13,175.08,6.49261134]
[1752705010790,3.27,175.11,175.08,12.20091134]
[1752705010991,3.27,175.19,175.1,6.49261134]
[1752705011205,3.27,175.19,175.12,6.49261134]
[1752705011989,3.27,175.16,175.12,12.19971134]
[1752705012403,3.27,175.16,175.12,8.9871]
[1752705012593,3.27,175.14,175.12,6.49261134]
[1752705013501,3.27,175.13,175.12,12.19981134]
[1752705013701,3.27,175.2,175.12,6.49261134]
[1752705014089,3.27,175.15,175.12,12.19961134]
[1752705014503,3.27,175.15,175.12,3.21261134]
[1752705014704,3.21261134,175.21,175.12,3.21261134]
[1752705014705,3.27,175.13,175.12,3.21261134]
[1752705015802,3.27,175.13,175.12,12.19981134]
[1752705016002,3.27,175.21,175.12,12.19981134]
[1752705016203,3.27,175.16,175.12,12.19981134]
[1752705016599,3.27,175.16,175.12,6.49261134]
[1752705017204,3.27,175.16,175.12,3.21261134]
[1752705017606,3.27,175.16,175.11,3.21261134]
[1752705017803,5.7069,175.13,175.11,3.21261134]
[1752705018106,3.27,175.12,175.11,3.21261134]
[1752705020606,3.27,175.12,175.11,12.20011134]
[1752705021109,3.27,175.12,175.11,6.49261134]
[1752705022708,3.27,175.12,175.11,12.20011134]
[1752705024211,3.27,175.12,175.11,3.28]
[1752705024510,3.27,175.12,175.11,3.21261134]
[1752705025406,3.27,175.12,175.09,180.00071134]
[1752705025907,3.27,175.12,175.09,176.72071134]
[1752705026513,3.27,175.12,175.07,3.21261134]
[1752705026918,3.27,175.08,175.06,171.01261134]
[1752705027212,3.27,175.08,175.06,3.21261134]
[1752705028011,5.7087,175.08,175.04,12.20221134]
[1752705028310,3.27,175.07,175.04,12.20221134]
[1752705028511,3.27,175.06,175.05,3.21261134]
[1752705028712,3.27,175.06,175.05,6.49261134]
[1752705028906,3.27,175.06,175.03,167.78]
[1752705029211,3.21261134,175.13,175.04,12.20231134]
[1752705029212,3.27,175.05,175.04,12.20231134]
[1752705029602,3.27,175.05,175.04,8.9897]
[1752705029815,3.27,175.05,175.04,12.20231134]
[1752705032117,3.27,175.05,175.04,5.7097]
[1752705032313,3.27,175.06,175.04,3.21261134]
[1752705032509,15.9536411,175.13,175.04,3.21261134]
[1752705032510,3.27,175.12,175.04,6.49261134]
[1752705032816,5.7088,175.08,175.04,12.20241134]
[1752705033012,3.07,175.07,175.04,3.21261134]
[1752705033315,3.07,175.08,175.06,5.709]
[1752705033911,3.07,175.1,175.07,3.21261134]
[1752705034104,3.07,175.12,175.1,3.32]
[1752705034303,3.07,175.12,175.11,3.32]
[1752705034716,3.07,175.11,175.1,12.24051134]
[1752705034919,3.07,175.11,175.08,3.32]
[1752705036120,3.07,175.11,175.09,5.7081]
[1752705036322,3.07,175.11,175.08,3.32]
[1752705036821,3.07,175.11,175.08,9.0284]
[1752705039416,3.07,175.12,175.09,3.21261134]
[1752705039618,3.07,175.19,175.12,3.32]
[1752705039826,3.07,175.19,175.14,6.53261134]
[1752705040015,5.7058,175.17,175.14,6.53261134]
[1752705040417,3.07,175.15,175.14,6.53261134]
[1752705041026,3.07,175.15,175.14,12.23911134]
[1752705042015,3.07,175.15,175.14,6.53261134]
[1752705043523,3.07,175.15,175.14,8.91911134]
[1752705044624,3.07,175.15,175.14,12.23911134]
[1752705050123,3.07,175.15,175.13,5.7068]
[1752705050320,3.07,175.15,175.12,6.53261134]
[1752705050723,3.07,175.15,175.13,5.7066]
[1752705055032,3.07,175.15,175.12,6.53261134]
[1752705055332,3.07,175.15,175.14,9.0265]
[1752705055833,3.07,175.15,175.14,12.23911134]
[1752705056436,3.07,175.17,175.16,5.7059]
[1752705056626,3.07,175.17,175.16,9.0259]
[1752705057233,3.07,175.17,175.16,5.7059]
[1752705057431,3.07,175.17,175.16,9.0259]
[1752705057927,3.07,175.23,175.16,3.21261134]
[1752705058134,3.07,175.31,175.23,3.32]
[1752705058334,493.0,175.45,175.29,3.22193682]
[1752705058530,3.07,175.36,175.28,3.32]
[1752705058734,3.07,175.36,175.24,82.85711066]
[1752705058735,3.07,175.34,175.29,6.53870396]
[1752705058931,3.07,175.34,175.31,6.53870396]
[1752705059131,9.56268309,175.41,175.24,250.53711066]
[1752705059435,3.07,175.35,175.34,3.32]
[1752705059629,3.07,175.35,175.33,8.91900396]
[1752705059832,3.07,175.34,175.33,12.23900396]
[1752705060138,3.07,175.34,175.33,6.53870396]
[1752705061127,3.07,175.34,175.31,3.21870396]
[1752705061331,3.07,175.34,175.31,6.53870396]
[1752705061533,3.07,175.44,175.34,3.32]
[1752705061733,3.07,175.44,175.38,3.21870396]
[1752705061929,8.767,175.44,175.38,12.23720396]
[1752705062130,493.0,175.45,175.38,12.23720396]
[1752705062330,3.07,175.43,175.38,6.53870396]
[1752705062534,3.21870396,175.46,175.32,3.21870396]
[1752705062834,3.07,175.41,175.37,3.21870396]
[1752705063035,5.6983,175.4,175.37,3.21870396]
[1752705063236,3.28,175.39,175.32,3.21870396]
[1752705063631,3.28,175.36,175.32,6.36870396]
[1752705064131,3.28,175.37,175.24,82.85711066]
[1752705064328,3.28,175.35,175.28,3.21870396]
[1752705064838,5.7012,175.31,175.27,3.21870396]
[1752705065037,12.78138705,175.41,175.25,3.21870396]
[1752705065238,12.78138705,175.41,175.24,82.85711066]
[1752705065239,3.28,175.35,175.27,3.21870396]
[1752705065632,5.7015,175.3,175.27,3.21870396]
[1752705065943,3.21870396,175.34,175.27,3.21870396]
[1752705066235,3.28,175.28,175.27,3.21870396]
[1752705066734,3.21870396,175.34,175.24,82.85711066]
[1752705066940,3.28,175.31,175.24,86.07581462]
[1752705067135,3.28,175.27,175.24,6.36870396]
[1752705067337,3.28,175.26,175.24,6.36870396]
[1752705067634,3.28,175.26,175.22,5.7037]
[1752705067940,3.28,175.26,175.24,6.36870396]
[1752705068539,3.28,175.26,175.24,3.15]
[1752705068736,3.28,175.29,175.21,6.36870396]
[1752705068928,3.28,175.27,175.19,495.97]
[1752705069128,3.28,175.27,175.2,3.21870396]
[1752705069331,3.28,175.25,175.23,3.15]
[1752705069528,3.28,175.24,175.22,6.36870396]
[1752705069834,3.28,175.23,175.22,6.36870396]
[1752705070035,3.28,175.24,175.22,6.36870396]
[1752705070542,3.28,175.38,175.24,3.15]
[1752705070740,3.21870396,175.44,175.35,3.21870396]
[1752705071048,3.28,175.43,175.35,3.21870396]
[1752705071339,3.21870396,175.44,175.35,3.21870396]
[1752705071535,3.28,175.38,175.36,3.15]
[1752705072033,3.28,175.37,175.35,3.21870396]
[1752705072232,3.28,175.36,175.35,3.21870396]
[1752705073146,3.28,175.36,175.34,8.8499]
[1752705073337,3.28,175.36,175.34,8.39176914]
[1752705073539,5.24176914,175.44,175.35,8.8497]
[1752705073741,3.28,175.37,175.35,8.8497]
[1752705074357,3.28,175.37,175.35,3.15]
[1752705074951,3.28,175.37,175.35,8.8497]
[1752705075143,184.42880916,175.48,175.35,3.15]
[1752705075144,3.28,175.47,175.35,3.15]
[1752705075444,3.28,175.46,175.36,8.39176914]
[1752705075756,3.28,175.4,175.36,8.39176914]
[1752705075950,5.698,175.41,175.36,8.39176914]
[1752705076151,3.28,175.38,175.36,14.09106914]
[1752705077954,3.28,175.38,175.36,3.15]
[1752705078158,3.28,175.44,175.36,3.15]
[1752705078956,5.24176914,175.47,175.37,5.24176914]
[1752705079157,3.28,175.46,175.38,3.15]
[1752705079548,3.28,175.42,175.39,3.15]
[1752705079746,3.28,175.41,175.39,3.15]
[1752705079944,3.28,175.4,175.39,3.15]
[1752705080953,3.28,175.4,175.37,5.24176914]
[1752705081149,3.28,175.39,175.37,8.39176914]
[1752705082160,3.28,175.39,175.37,5.24176914]
[1752705082459,3.28,175.39,175.38,3.15]
[1752705082658,3.28,175.39,175.37,8.39176914]
[1752705083455,3.28,175.39,175.37,14.09076914]
[1752705084356,3.28,175.41,175.38,3.15]
[1752705084556,3.28,175.4,175.38,3.15]
[1752705085154,3.28,175.39,175.38,3.15]
[1752705085364,3.28,175.39,175.37,8.39176914]
[1752705085956,3.28,175.39,175.37,14.09086914]
[1752705086358,3.28,175.39,175.37,10.94086914]
[1752705086561,3.28,175.39,175.38,3.15]
[1752705087565,3.28,175.39,175.34,5.24176914]
[1752705087760,3.28,175.39,175.34,8.39176914]
[1752705087968,3.28,175.39,175.35,3.15]
[1752705088268,3.28,175.38,175.36,3.15]
[1752705088466,3.28,175.37,175.36,3.15]
[1752705088855,5.6986,175.39,175.36,3.15]
[1752705089067,3.28,175.38,175.36,3.15]
[1752705089870,5.698,175.41,175.36,5.24176914]
[1752705090065,3.28,175.4,175.38,3.15]
[1752705090870,3.28,175.39,175.37,5.6988]
[1752705091065,3.28,175.39,175.37,8.8488]
[1752705091770,3.28,175.39,175.31,167.54]
[1752705091771,3.28,175.49,175.38,5.24176914]
[1752705091972,3.28,175.49,175.4,5.24176914]
[1752705092959,3.3,175.48,175.4,5.24176914]
[1752705093467,3.3,175.42,175.4,5.24176914]
[1752705093670,3.3,175.41,175.4,5.24176914]
[1752705094771,3.3,175.48,175.4,10.93986914]
[1752705094972,3.3,175.48,175.42,3.21380355]
[1752705095276,3.3,175.43,175.4,3.21380355]
[1752705095462,3.3,175.41,175.4,6.31380355]
[1752705096069,3.3,175.47,175.4,6.31380355]
[1752705096369,492.34,175.54,175.4,3.21380355]
[1752705096573,3.3,175.44,175.42,6.31380355]
[1752705096766,3.3,175.43,175.42,6.31380355]
[1752705097078,3.3,175.43,175.38,3.21380355]
[1752705097276,3.3,175.43,175.38,6.31380355]
[1752705097470,3.3,175.43,175.36,3.1]
[1752705097777,3.3,175.41,175.34,6.31380355]
[1752705098176,3.3,175.38,175.35,8.7997]
[1752705098566,5.6986,175.39,175.36,3.21380355]
[1752705098773,3.3,175.38,175.37,3.1]
[1752705099480,3.3,175.37,175.36,6.31380355]
[1752705100370,3.3,175.41,175.35,3.1]
[1752705100567,3.21380355,175.5,175.3,6.31380355]
[1752705100568,3.21380355,175.38,175.3,6.31380355]
[1752705100878,3.3,175.37,175.32,3.1]
[1752705101380,3.3,175.37,175.33,3.1]
[1752705101885,3.3,175.35,175.33,8.8004]
[1752705102182,3.3,175.34,175.33,3.1]